fUSD/lending_fUSD_20250404
["ID","MTS","AMOUNT","RATE_DAILY","PERIOD"]
[357138659,1743784245535,-500.0,0.0005046,120]
[357138660,1743784245544,-500.0,0.0005046,120]
[357138661,1743784245554,-500.0,0.0005046,120]
[357138662,1743784245564,-500.0,0.0005046,120]
[357138663,1743784245573,-500.0,0.0005046,120]
[357138664,1743784245582,-500.0,0.0005046,120]
[357138665,1743784245592,-500.0,0.0005046,30]
[357138666,1743784245605,-500.0,0.0005046,120]
[357138667,1743784245614,-500.0,0.0005046,120]
[357138668,1743784245624,-500.0,0.0005046,120]
[357138669,1743784245634,-500.0,0.0005046,120]
[357138670,1743784245644,-500.0,0.0005046,120]
[357138671,1743784245654,-500.0,0.0005046,120]
[357138672,1743784245663,-500.0,0.0005046,120]
[357138673,1743784245674,-645.66,0.0005046,120]
[357138674,1743784245684,-500.0,0.0005046,120]
[357138675,1743784245694,-500.0,0.0005046,120]
[357138676,1743784245704,-500.0,0.0005046,120]
[357138677,1743784245713,-500.0,0.0005046,120]
[357138678,1743784245723,-500.0,0.0005046,120]
[357138679,1743784245732,-181.21570302,0.0005046,120]
[357138680,1743784245742,-639.3,0.0005046,120]
[357138681,1743784245752,-500.0,0.0005046,12]
[357138682,1743784245761,-500.0,0.0005046,120]
[357138683,1743784245771,-1034.44,0.0005046,10]
[357138684,1743784245781,-500.0,0.0005046,120]
[357138685,1743784245791,-500.0,0.0005046,30]
[357138686,1743784245801,-500.0,0.0005046,120]
[357138687,1743784245810,-500.0,0.0005046,120]
[357138688,1743784245819,-2000.0,0.0005046,2]
[357138689,1743784245829,-500.0,0.0005046,120]
[357138690,1743784245839,-217.43247785,0.0005046,120]
[357138691,1743784245850,-500.0,0.0005046,30]
[357138692,1743784245860,-500.0,0.0005046,120]
[357138693,1743784245870,-500.0,0.0005046,120]
[357138694,1743784245879,-500.0,0.0005046,120]
[357138695,1743784245889,-500.0,0.0005046,120]
[357138696,1743784245899,-500.0,0.0005046,120]
[357138697,1743784245908,-500.0,0.0005046,120]
[357138698,1743784245918,-776.04,0.0005046,120]
[357138699,1743784245928,-500.0,0.0005046,120]
[357138700,1743784245937,-500.0,0.0005046,7]
[357138701,1743784245946,-500.0,0.0005046,120]
[357138702,1743784245956,-500.0,0.0005046,120]
[357138703,1743784245966,-500.0,0.0005046,120]
[357138704,1743784245975,-520.20324713,0.0005046,120]
[357138705,1743784245985,-2563.11,0.0005046,2]
[357138706,1743784245994,-525.34899254,0.0005046,120]
[357138707,1743784246003,-500.0,0.0005046,120]
[357138708,1743784246013,-538.24913578,0.0005046,120]
[357138709,1743784246022,-534.83495399,0.0005046,120]
[357138710,1743784246032,-495.0,0.0005046,60]
[357138711,1743784246042,-500.0,0.0005046,120]
[357138712,1743784246052,-821.9,0.0005046,120]
[357138713,1743784246061,-500.0,0.0005046,120]
[357138714,1743784246070,-500.0,0.0005046,120]
[357138715,1743784246080,-501.97984464,0.0005046,120]
[357138716,1743784246089,-500.0,0.0005046,120]
[357138717,1743784246101,-500.0,0.0005046,120]
[357138718,1743784246111,-174.60936735,0.0005046,120]
[357138719,1743784246120,-500.0,0.0005046,120]
[357138720,1743784246130,-508.26,0.0005046,120]
[357138721,1743784246139,-513.01766303,0.0005046,120]
[357138722,1743784246149,-542.04,0.0005046,120]
[357138723,1743784246158,-500.0,0.0005046,120]
[357138724,1743784246167,-500.0,0.0005046,120]
[357138725,1743784246177,-500.0,0.0005046,120]
[357138726,1743784246190,-500.0,0.0005046,120]
[357138727,1743784246199,-500.0,0.0005046,120]
[357138728,1743784246208,-500.0,0.0005046,120]
[357138729,1743784246218,-519.99761517,0.0005046,120]
[357138730,1743784246229,-500.0,0.0005046,120]
[357138731,1743784246239,-548.99503864,0.0005046,120]
[357138732,1743784246249,-442.66621602,0.0005046,120]
[357138733,1743784246260,-500.0,0.0005046,120]
[357138734,1743784246269,-653.56,0.0005046,120]
[357138735,1743784246279,-500.0,0.0005046,120]
[357138736,1743784246288,-570.54,0.0005046,120]
[357138737,1743784246297,-500.0,0.0005046,120]
[357138738,1743784246307,-500.0,0.0005046,120]
[357138739,1743784246317,-500.0,0.0005046,120]
[357138740,1743784246326,-500.0,0.0005046,120]
[357138741,1743784246335,-160.15631196,0.0005046,2]
[357138742,1743784246347,-500.0,0.0005046,120]
[357138743,1743784246357,-500.0,0.0005046,120]
[357138744,1743784246461,-500.0,0.0005046,120]
[357138745,1743784246471,-500.0,0.0005046,120]
[357138746,1743784246480,-500.0,0.0005046,120]
[357138747,1743784246489,-370.76122789,0.0005046,120]
[357138748,1743784246499,-150.0,0.0005046,7]
[357138750,1743784246508,-150.0,0.0005046,7]
[357138752,1743784246517,-500.0,0.0005046,120]
[357138754,1743784246526,-500.0,0.0005046,120]
[357138756,1743784246536,-500.0,0.0005046,2]
[357138758,1743784246545,-609.54692479,0.0005046,120]
[357138760,1743784246554,-301.5294748,0.0005046,120]
[357138762,1743784246563,-500.0,0.0005046,120]
[357138764,1743784246572,-500.0,0.0005046,120]
[357138766,1743784246581,-500.0,0.0005046,120]
[357138768,1743784246590,-500.0,0.0005046,120]
[357138770,1743784246601,-235.83748568,0.0005046,120]
[357138772,1743784246610,-932.29,0.0005046,120]
[357138774,1743784246620,-500.0,0.0005046,120]
[357138776,1743784246629,-500.0,0.0005046,120]
[357138778,1743784246640,-500.0,0.0005046,120]
[357138780,1743784246649,-973.28,0.0005046,120]
[357138782,1743784246658,-318.03088674,0.0005046,120]
[357138784,1743784246668,-500.0,0.0005046,16]
[357138786,1743784246678,-500.0,0.0005046,120]
[357138788,1743784246687,-150.0,0.00050463,7]
[357138789,1743784246697,-150.0,0.00050463,7]
[357138791,1743784246706,-150.0,0.00050464,7]
[357138792,1743784246716,-150.0,0.00050464,7]
[357138793,1743784246725,-150.0,0.00050464,7]
[357138794,1743784246735,-150.0,0.00050466,7]
[357138795,1743784246744,-150.0,0.00050472,7]
[357138796,1743784246753,-515.24617184,0.00050474,15]
[357138797,1743784246762,-150.0,0.00050474,7]
[357138798,1743784246771,-500.0,0.0005048,2]
[357138799,1743784246781,-507.30664379,0.0005048,120]
[357138800,1743784246790,-500.0,0.0005048,120]
[357138801,1743784246799,-500.0,0.0005048,120]
[357138802,1743784246808,-500.0,0.0005048,2]
[357138803,1743784246817,-500.0,0.0005048,120]
[357138804,1743784246827,-150.0,0.00050485,7]
[357138805,1743784246836,-150.0,0.00050487,7]
[357138806,1743784246846,-150.0,0.00050487,7]
[357138807,1743784246856,-500.0,0.00050489,2]
[357138808,1743784246865,-500.0,0.00050489,120]
[357138809,1743784246874,-597.72,0.00050489,120]
[357138810,1743784246883,-151.0,0.0005049,120]
[357138811,1743784246892,-151.0,0.0005049,90]
[357138812,1743784246902,-1242.29097,0.0005049,120]
[357138813,1743784246911,-1242.29097,0.0005049,120]
[357138814,1743784246921,-151.0,0.0005049,120]
[357138815,1743784246931,-152.185386,0.0005049,120]
[357138816,1743784246942,-227.317871,0.0005049,120]
[357138817,1743784246951,-227.317871,0.0005049,120]
[357138818,1743784246961,-861.13597,0.0005049,120]
[357138819,1743784246971,-861.13597,0.0005049,120]
[357138820,1743784246982,-1000.0,0.00050495,30]
[357138821,1743784246992,-522.59961057,0.00050499,2]
[357138822,1743784247002,-4352.8767157,0.00050499,2]
[357138823,1743784247012,-150.0,0.00050499,120]
[357138824,1743784247021,-500.0,0.00050499,120]
[357138825,1743784247030,-500.0,0.00050499,120]
[357138826,1743784247040,-597.72,0.00050499,120]
[357138827,1743784247049,-597.72,0.00050499,120]
[357138828,1743784247059,-597.72,0.00050499,120]
[357138829,1743784247069,-497953.16241229,0.000505,120]
[357138830,1743784247079,-81661.34,0.000505,120]
[357138831,1743784247088,-159.8559859,0.000505,30]
[357138832,1743784247099,-180.40070442,0.000505,30]
[357138833,1743784247108,-11644.11487588,0.000505,30]
[357138834,1743784247117,-236.0,0.000505,30]
[357138835,1743784247127,-151.0,0.000505,120]
[357138836,1743784247136,-151.0,0.000505,120]
[357138837,1743784247145,-151.0,0.000505,120]
[357138838,1743784247154,-151.0,0.000505,120]
[357138839,1743784247164,-151.0,0.000505,120]
[357138840,1743784247177,-151.0,0.000505,120]
[357138841,1743784247186,-151.0,0.000505,120]
[357138842,1743784247195,-225.606462,0.000505,120]
[357138843,1743784247204,-246.636462,0.000505,120]
[357138844,1743784247213,-199.804669,0.000505,120]
[357138845,1743784247224,-151.578604,0.000505,120]
[357138846,1743784247233,-154.634698,0.000505,120]
[357138847,1743784247243,-151.0,0.000505,120]
[357138848,1743784247252,-151.0,0.000505,120]
[357138849,1743784247263,-151.0,0.000505,120]
[357138850,1743784247271,-1242.29097,0.000505,120]
[357138851,1743784247281,-1242.29097,0.000505,120]
[357138852,1743784247290,-246.422788,0.000505,120]
[357138853,1743784247299,-151.0,0.000505,120]
[357138854,1743784247308,-151.0,0.000505,120]
[357138855,1743784247318,-373.0,0.000505,30]
[357138856,1743784247328,-227.317871,0.000505,120]
[357138857,1743784247337,-756.0,0.000505,30]
[357138858,1743784247346,-227.317871,0.000505,120]
[357138859,1743784247356,-151.0,0.000505,120]
[357138860,1743784247366,-861.13597,0.000505,120]
[357138861,1743784247376,-861.13597,0.000505,120]
[357138862,1743784247386,-151.0,0.000505,120]
[357138863,1743784247397,-151.0,0.000505,120]
[357138864,1743784247407,-151.0,0.000505,120]
[357138865,1743784247418,-10225.4497915,0.00050503,2]
[357138866,1743784247428,-222.44652137,0.00050525,15]
[357138867,1743784247437,-606.6,0.00050547,120]
[357138868,1743784247449,-500.0,0.00050547,2]
[357138869,1743784247458,-500.0,0.00050547,120]
[357138870,1743784247468,-500.0,0.00050547,120]
[357138871,1743784247477,-515.24617184,0.00050558,15]
[357138872,1743784247488,-500.0,0.00050561,60]
[357138873,1743784247498,-871.31740515,0.00050583,2]
[357138874,1743784247509,-188.09187883,0.00050633,2]
[357138875,1743784247518,-515.24617184,0.00050643,15]
[357138876,1743784247527,-222.44652137,0.0005065,15]
[357138877,1743784247536,-500.0,0.00050683,120]
[357138878,1743784247546,-693.29,0.00050683,120]
[357138879,1743784247555,-500.0,0.00050683,120]
[357138880,1743784247566,-500.0,0.00050683,120]
[357138881,1743784247575,-500.0,0.00050683,120]
[357138882,1743784247584,-500.0,0.00050683,120]
[357138883,1743784247595,-500.0,0.00050683,120]
[357138884,1743784247606,-500.0,0.00050683,120]
[357138885,1743784247617,-500.0,0.00050683,120]
[357138886,1743784247627,-484.90035094,0.00050683,120]
[357138887,1743784247637,-500.0,0.00050683,120]
[357138888,1743784247648,-500.0,0.00050683,7]
[357138889,1743784247658,-500.0,0.00050683,120]
[357138890,1743784247669,-500.0,0.00050683,120]
[357138891,1743784247679,-654.5,0.00050683,120]
[357138892,1743784247689,-500.0,0.00050683,120]
[357138893,1743784247698,-500.0,0.00050683,120]
[357138894,1743784247708,-500.0,0.00050683,120]
[357138895,1743784247718,-500.0,0.00050683,120]
[357138896,1743784247728,-934.65,0.00050683,120]
[357138897,1743784247737,-2359.71,0.00050683,7]
[357138898,1743784247746,-500.0,0.00050683,120]
[357138899,1743784247756,-1118.39,0.00050683,120]
[357138900,1743784247766,-175.11929874,0.00050683,120]
[357138901,1743784247776,-500.0,0.00050683,120]
[357138902,1743784247786,-500.0,0.00050683,120]
[357138903,1743784247795,-1318.54,0.00050683,120]
[357138904,1743784247804,-1219.9,0.00050683,120]
[357138905,1743784247814,-4812.53,0.00050683,120]
[357138906,1743784247823,-500.0,0.00050683,120]
[357138907,1743784247833,-500.0,0.00050683,120]
[357138908,1743784247842,-2532.09,0.00050683,120]
[357138909,1743784247853,-500.0,0.00050683,120]
[357138910,1743784247864,-500.0,0.00050683,120]
[357138911,1743784247874,-500.0,0.00050683,120]
[357138912,1743784247883,-684.54,0.00050683,120]
[357138913,1743784247894,-500.0,0.00050684,120]
[357138914,1743784247904,-1875.29,0.00050684,120]
[357138915,1743784247914,-500.0,0.00050684,120]
[357138916,1743784247924,-1956.54,0.00050684,120]
[357138917,1743784247934,-825.72,0.00050684,120]
[357138918,1743784247944,-500.0,0.00050684,120]
[357138919,1743784247953,-524.14,0.00050684,120]
[357138920,1743784247963,-908.92,0.00050684,120]
[357138921,1743784247974,-500.0,0.00050684,2]
[357138922,1743784247984,-754.52,0.00050684,120]
[357138923,1743784247995,-500.0,0.00050684,120]
[357138924,1743784248006,-500.0,0.00050684,120]
[357138925,1743784248014,-628.34617746,0.00050684,120]
[357138926,1743784248024,-500.0,0.00050684,120]
[357138927,1743784248034,-500.0,0.00050684,2]
[357138928,1743784248043,-553.61,0.00050684,120]
[357138929,1743784248053,-500.0,0.00050684,100]
[357138930,1743784248062,-500.0,0.00050684,2]
[357138931,1743784248071,-300.0,0.00050698,120]
[357138932,1743784248081,-515.24617184,0.00050727,15]
[357138933,1743784248090,-500.0,0.00050733,120]
[357138934,1743784248101,-622.91,0.00050733,120]
[357138935,1743784248110,-378.73469739,0.00050733,120]
[357138936,1743784248119,-1447.85,0.00050733,120]
[357138937,1743784248129,-500.0,0.00050733,10]
[357138938,1743784248138,-500.0,0.00050733,120]
[357138939,1743784248148,-500.0,0.00050733,120]
[357138940,1743784248157,-500.0,0.00050733,120]
[357138941,1743784248167,-500.0,0.00050733,120]
[357138942,1743784248178,-774.98,0.00050733,120]
[357138943,1743784248195,-500.0,0.00050733,120]
[357138944,1743784248204,-500.0,0.00050733,120]
[357138945,1743784248215,-500.0,0.00050733,120]
[357138946,1743784248224,-500.0,0.00050733,120]
[357138947,1743784248233,-500.0,0.00050733,30]
[357138948,1743784248242,-500.0,0.00050733,120]
[357138949,1743784248252,-443.31980339,0.00050733,120]
[357138950,1743784248263,-500.0,0.00050733,120]
[357138951,1743784248273,-500.0,0.00050733,120]
[357138952,1743784248282,-500.0,0.00050733,120]
[357138953,1743784248291,-645.66,0.00050733,120]
[357138954,1743784248300,-399.52699011,0.00050733,120]
[357138955,1743784248310,-500.0,0.00050733,120]
[357138956,1743784248319,-500.0,0.00050733,120]
[357138957,1743784248328,-639.3,0.00050733,120]
[357138958,1743784248338,-500.0,0.00050733,12]
[357138959,1743784248348,-500.0,0.00050733,120]
[357138960,1743784248358,-1034.44,0.00050733,10]
[357138961,1743784248368,-500.0,0.00050733,120]
[357138962,1743784248378,-500.0,0.00050733,30]
[357138963,1743784248387,-500.0,0.00050733,120]
[357138964,1743784248489,-2000.0,0.00050733,2]
[357138965,1743784248499,-500.0,0.00050733,120]
[357138966,1743784248509,-500.0,0.00050733,30]
[357138967,1743784248519,-500.0,0.00050733,120]
[357138968,1743784248528,-500.0,0.00050733,120]
[357138969,1743784248537,-500.0,0.00050733,120]
[357138970,1743784248547,-500.0,0.00050733,120]
[357138971,1743784248556,-500.0,0.00050733,120]
[357138972,1743784248566,-776.04,0.00050733,120]
[357138973,1743784248575,-500.0,0.00050733,120]
[357138974,1743784248585,-500.0,0.00050733,7]
[357138975,1743784248594,-400.76903112,0.00050733,120]
[357138976,1743784248604,-220.07888574,0.00050733,120]
[357138977,1743784248614,-268.40058625,0.00050733,120]
[357138978,1743784248624,-2563.11,0.00050733,2]
[357138979,1743784248633,-500.0,0.00050733,120]
[357138980,1743784248643,-500.0,0.00050733,120]
[357138981,1743784248652,-821.9,0.00050733,120]
[357138982,1743784248661,-500.0,0.00050733,120]
[357138983,1743784248671,-500.0,0.00050733,120]
[357138984,1743784248680,-592.91656909,0.00050733,120]
[357138985,1743784248689,-500.0,0.00050733,120]
[357138986,1743784248699,-508.26,0.00050733,120]
[357138987,1743784248708,-542.04,0.00050733,120]
[357138988,1743784248717,-500.0,0.00050733,120]
[357138989,1743784248726,-500.0,0.00050733,120]
[357138990,1743784248735,-500.0,0.00050733,120]
[357138991,1743784248744,-500.0,0.00050733,120]
[357138992,1743784248753,-169.51348153,0.00050733,120]
[357138993,1743784248763,-500.0,0.00050733,120]
[357138994,1743784248773,-653.56,0.00050733,120]
[357138995,1743784248783,-500.0,0.00050733,120]
[357138996,1743784248793,-570.54,0.00050733,120]
[357138997,1743784248803,-500.0,0.00050733,120]
[357138998,1743784248813,-443.63563698,0.00050733,120]
[357138999,1743784248823,-500.0,0.00050733,120]
[357139000,1743784248832,-169.91980135,0.00050733,120]
[357139001,1743784248842,-500.0,0.00050733,120]
[357139002,1743784248853,-500.0,0.00050733,120]
[357139003,1743784248863,-500.0,0.00050733,120]
[357139004,1743784248872,-524.81894538,0.00050733,120]
[357139005,1743784248881,-500.0,0.00050733,120]
[357139006,1743784248891,-500.0,0.00050733,120]
[357139007,1743784248900,-500.0,0.00050733,2]
[357139008,1743784248910,-500.0,0.00050733,120]
[357139009,1743784248919,-500.0,0.00050733,120]
[357139010,1743784248928,-500.0,0.00050733,120]
[357139011,1743784248939,-500.0,0.00050733,120]
[357139012,1743784248948,-932.29,0.00050733,120]
[357139013,1743784248958,-159.24849884,0.00050733,120]
[357139014,1743784248968,-500.0,0.00050733,120]
[357139015,1743784248978,-500.0,0.00050733,120]
[357139016,1743784248988,-973.28,0.00050733,120]
[357139017,1743784248997,-500.0,0.00050733,16]
[357139018,1743784249006,-500.0,0.00050733,120]
[357139019,1743784249016,-597.72,0.00050748,120]
[357139020,1743784249025,-453.91880701,0.00050749,120]
[357139021,1743784249035,-597.72,0.00050749,120]
[357139022,1743784249044,-597.72,0.00050749,120]
[357139023,1743784249054,-597.72,0.00050749,120]
[357139024,1743784249065,-597.72,0.00050749,120]
[357139025,1743784249075,-597.72,0.00050749,120]
[357139026,1743784249085,-597.72,0.00050749,120]
[357139027,1743784249095,-597.72,0.00050749,120]
[357139028,1743784249107,-597.79109705,0.00050749,120]
[357139029,1743784249118,-1000000.0,0.0005075,120]
[357139030,1743784249127,-151.0,0.0005075,120]
[357139031,1743784249137,-151.0,0.0005075,120]
[357139032,1743784249147,-151.0,0.0005075,120]
[357139033,1743784249156,-151.975572,0.0005075,120]
[357139034,1743784249165,-151.0,0.0005075,120]
[357139035,1743784249176,-151.0,0.0005075,120]
[357139036,1743784249187,-155.96115,0.0005075,120]
[357139037,1743784249197,-151.0,0.0005075,120]
[357139038,1743784249207,-284.276388,0.0005075,120]
[357139039,1743784249218,-151.0,0.0005075,120]
[357139040,1743784249228,-151.0,0.0005075,120]
[357139041,1743784249238,-151.0,0.0005075,120]
[357139042,1743784249248,-151.0,0.0005075,120]
[357139043,1743784249261,-222.126012,0.0005075,120]
[357139044,1743784249271,-151.0,0.0005075,120]
[357139045,1743784249281,-152.696628,0.0005075,120]
[357139046,1743784249292,-151.0,0.0005075,120]
[357139047,1743784249302,-151.0,0.0005075,120]
[357139048,1743784249313,-151.0,0.0005075,120]
[357139049,1743784249326,-1242.29097,0.0005075,120]
[357139050,1743784249336,-1242.29097,0.0005075,120]
[357139051,1743784249347,-151.0,0.0005075,120]
[357139052,1743784249357,-227.317871,0.0005075,120]
[357139053,1743784249367,-227.317871,0.0005075,120]
[357139054,1743784249377,-151.0,0.0005075,120]
[357139055,1743784249387,-861.13597,0.0005075,120]
[357139056,1743784249397,-861.13597,0.0005075,120]
[357139057,1743784249406,-151.0,0.0005075,120]
[357139058,1743784249416,-1760.0,0.0005075,2]
[357139059,1743784249425,-500.0,0.00050753,120]
[357139060,1743784249435,-500.0,0.00050753,120]
[357139061,1743784249445,-160.55909828,0.00050773,10]
[357139062,1743784249454,-154.09630242,0.00050775,41]
[357139063,1743784249464,-222.44652137,0.00050775,15]
[357139064,1743784249474,-175.0,0.00050777,2]
[357139065,1743784249484,-500.0,0.00050804,120]
[357139066,1743784249493,-500.0,0.00050804,120]
[357139067,1743784249502,-500.0,0.00050804,120]
[357139068,1743784249512,-200.0,0.00050804,120]
[357139069,1743784249522,-515.24617184,0.00050812,15]
[357139070,1743784249531,-606.6,0.00050821,120]
[357139071,1743784249541,-500.0,0.00050821,2]
[357139072,1743784249551,-500.0,0.00050821,120]
[357139073,1743784249560,-500.0,0.00050821,120]
[357139074,1743784249570,-185.91524578,0.0005085,10]
[357139075,1743784249579,-515.24617184,0.00050896,15]
[357139076,1743784249588,-222.44652137,0.000509,15]
[357139077,1743784249597,-207680.62,0.000509,60]
[357139078,1743784249607,-500.0,0.00050957,120]
[357139079,1743784249616,-693.29,0.00050957,120]
[357139080,1743784249626,-500.0,0.00050957,120]
[357139081,1743784249636,-290.88829129,0.00050957,120]
[357139082,1743784249646,-345.64259546,0.00050957,120]
[357139083,1743784249656,-295.34527568,0.00050957,120]
[357139084,1743784249665,-500.0,0.00050957,120]
[357139085,1743784249675,-500.0,0.00050957,120]
[357139086,1743784249684,-500.0,0.00050957,120]
[357139087,1743784249693,-500.0,0.00050957,120]
[357139088,1743784249702,-500.0,0.00050957,7]
[357139089,1743784249711,-500.0,0.00050957,120]
[357139090,1743784249721,-500.0,0.00050957,120]
[357139091,1743784249730,-654.5,0.00050957,120]
[357139092,1743784249739,-500.0,0.00050957,120]
[357139093,1743784249749,-218.3680652,0.00050957,120]
[357139094,1743784249759,-500.0,0.00050957,120]
[357139095,1743784249768,-509.03917048,0.00050957,120]
[357139096,1743784249777,-934.65,0.00050957,120]
[357139097,1743784249786,-2359.71,0.00050957,7]
[357139098,1743784249795,-500.0,0.00050957,120]
[357139099,1743784249805,-1118.39,0.00050957,120]
[357139100,1743784249814,-500.0,0.00050957,120]
[357139101,1743784249824,-500.0,0.00050957,120]
[357139102,1743784249833,-1318.54,0.00050957,120]
[357139103,1743784249842,-1219.9,0.00050957,120]
[357139104,1743784249852,-4812.53,0.00050957,120]
[357139105,1743784249862,-500.0,0.00050957,120]
[357139106,1743784249871,-305.56061959,0.00050957,120]
[357139107,1743784249881,-2532.09,0.00050957,120]
[357139108,1743784249890,-500.0,0.00050957,120]
[357139109,1743784249900,-500.0,0.00050957,120]
[357139110,1743784249909,-500.0,0.00050957,120]
[357139111,1743784249918,-684.54,0.00050957,120]
[357139112,1743784249927,-500.0,0.00050958,120]
[357139113,1743784249936,-1875.29,0.00050958,120]
[357139114,1743784249946,-186.04296462,0.00050958,120]
[357139115,1743784249956,-1956.54,0.00050958,120]
[357139116,1743784249965,-825.72,0.00050958,120]
[357139117,1743784249974,-500.0,0.00050958,120]
[357139118,1743784249984,-524.14,0.00050958,120]
[357139119,1743784249993,-908.92,0.00050958,120]
[357139120,1743784250003,-500.0,0.00050958,2]
[357139121,1743784250013,-754.52,0.00050958,120]
[357139122,1743784250022,-500.0,0.00050958,120]
[357139123,1743784250031,-500.0,0.00050958,120]
[357139124,1743784250040,-500.0,0.00050958,120]
[357139125,1743784250049,-500.0,0.00050958,2]
[357139126,1743784250059,-553.61,0.00050958,120]
[357139127,1743784250068,-500.0,0.00050958,100]
[357139128,1743784250077,-500.0,0.00050958,2]
[357139129,1743784250086,-626.29446246,0.00050966,2]
[357139130,1743784250095,-500.0,0.00050973,10]
[357139131,1743784250105,-515.24617184,0.00050981,15]
[357139132,1743784250116,-311.0,0.00051,120]
[357139133,1743784250125,-686389.50216472,0.00051,120]
[357139134,1743784250338,-1609.66036706,0.00051,120]
[357139135,1743784250545,-0.00589307,0.00037,2]
[357139136,1743784250556,-249.99410693,0.00037,2]
[357139137,1743784250565,-500.0,0.00049315,120]
[357139138,1743784250576,-173.43246538,0.00049315,120]
[357139139,1743784250585,-500.0,0.00049315,120]
[357139140,1743784250594,-457.53066939,0.00049315,120]
[357139141,1743784250605,-500.0,0.00049589,120]
[357139142,1743784250615,-500.0,0.00049863,120]
[357139143,1743784250624,-179.34466,0.0005015,120]
[357139144,1743784250634,-151.0,0.0005015,120]
[357139145,1743784250643,-22597.69396324,0.00051,120]
[357139146,1743784250654,-500.0,0.00051,120]
[357139147,1743784250670,-1284.32915999,0.00051,120]
[357139148,1743784250681,-10893.65308603,0.00051,120]
[357139149,1743784250694,-41305.70361302,0.00051,120]
[357139150,1743784251255,-300.0,0.00039,2]
[357139151,1743784251264,-589.77323113,0.00048551,2]
[357139152,1743784251275,-3103.3582,0.00048551,2]
[357139153,1743784251287,-4868.73469167,0.00048551,2]
[357139154,1743784251967,-15338.1338772,0.00048551,2]
[357139155,1743784251977,-500.0,0.00049315,2]
[357139156,1743784251987,-500.0,0.00049315,120]
[357139157,1743784251998,-500.0,0.00049315,120]
[357139158,1743784252007,-500.0,0.00049315,120]
[357139159,1743784252017,-153.0,0.00049315,90]
[357139160,1743784252026,-499.91409382,0.00049589,2]
[357139161,1743784252036,-500.0,0.00049589,120]
[357139162,1743784252045,-500.0,0.00049589,120]
[357139163,1743784252055,-500.0,0.00049863,120]
[357139164,1743784252066,-487.183,0.00050131,120]
[357139165,1743784252075,-150.0,0.00050216,7]
[357139166,1743784252085,-150.0,0.00050217,7]
[357139167,1743784252095,-150.0,0.00050223,7]
[357139168,1743784252105,-150.0,0.00050228,7]
[357139169,1743784252114,-150.0,0.00050234,7]
[357139170,1743784252124,-150.0,0.00050237,7]
[357139171,1743784252134,-150.0,0.00050239,7]
[357139172,1743784252143,-150.0,0.00050239,7]
[357139173,1743784252153,-150.0,0.00050241,7]
[357139174,1743784252162,-150.0,0.00050241,7]
[357139175,1743784252172,-150.0,0.00050241,7]
[357139176,1743784252184,-150.0,0.00050242,7]
[357139177,1743784252193,-150.0,0.00050245,7]
[357139178,1743784252202,-150.0,0.00050247,7]
[357139179,1743784252212,-150.0,0.00050252,7]